[Event "Late-Titled-Tuesday-Blitz-June-04-2024"]
[Site "Chess.com"]
[Date "2024.06.04"]
[Round "3"]
[White "NoSpaghettiForYou"]
[Black "IlyaGrigorjev"]
[Result "0-1"]
[WhiteElo "2543"]
[BlackElo "2832"]
[TimeControl "180+1"]
[EndTime "14:26:12 PDT"]
[Termination "IlyaGrigorjev won by resignation"]

1. Nc3 {[%clk 0:03:00.9]} 1... Nf6 {[%clk 0:02:58.2]} 2. e4 {[%clk 0:03:00.7]}
2... e5 {[%clk 0:02:57.5]} 3. g3 {[%clk 0:03:01]} 3... d5 {[%clk 0:02:50.8]} 4.
exd5 {[%clk 0:03:00.6]} 4... c6 {[%clk 0:02:48]} 5. d4 {[%clk 0:02:59.1]} 5...
exd4 {[%clk 0:02:43.9]} 6. Qxd4 {[%clk 0:03:00]} 6... cxd5 {[%clk 0:02:44.4]} 7.
Bb5+ {[%clk 0:03:00]} 7... Nc6 {[%clk 0:02:44.2]} 8. Bg5 {[%clk 0:02:51.5]} 8...
Be7 {[%clk 0:02:44.1]} 9. Qa4 {[%clk 0:02:34.5]} 9... O-O {[%clk 0:02:42.5]} 10.
O-O-O {[%clk 0:02:21.1]} 10... a6 {[%clk 0:02:30.3]} 11. Bxc6 {[%clk 0:02:16.2]}
11... bxc6 {[%clk 0:02:31.2]} 12. Qxc6 {[%clk 0:02:16.6]} 12... Be6 {[%clk
0:02:31.7]} 13. Bxf6 {[%clk 0:01:56.8]} 13... Bxf6 {[%clk 0:02:31.4]} 14. Nxd5
{[%clk 0:01:57.2]} 14... Rc8 {[%clk 0:02:22.5]} 15. Nxf6+ {[%clk 0:01:50.2]}
15... Qxf6 {[%clk 0:02:23.4]} 16. Qf3 {[%clk 0:01:39.1]} 16... Qg6 {[%clk
0:01:56.6]} 17. Rd2 {[%clk 0:01:18.7]} 17... Bf5 {[%clk 0:01:34.5]} 18. Qb3
{[%clk 0:01:18.8]} 18... Rb8 {[%clk 0:01:29.1]} 19. Qa4 {[%clk 0:01:14.4]} 19...
Rfc8 {[%clk 0:01:03]} 20. Ne2 {[%clk 0:01:13.9]} 20... Qb6 {[%clk 0:00:56.8]}
21. Qd4 {[%clk 0:01:06.4]} 21... Qc6 {[%clk 0:00:55.7]} 22. Qd5 {[%clk
0:00:51.3]} 22... Qxd5 {[%clk 0:00:43.7]} 23. Rxd5 {[%clk 0:00:52.2]} 23... Be4
{[%clk 0:00:38]} 0-1

[Event "Late-Titled-Tuesday-Blitz-June-04-2024"]
[Site "Chess.com"]
[Date "2024.06.04"]
[Round "3"]
[White "Kapitan_Bayan"]
[Black "andrew-blr"]
[Result "1-0"]
[WhiteElo "2371"]
[BlackElo "2628"]
[TimeControl "180+1"]
[EndTime "14:26:12 PDT"]
[Termination "Kapitan_Bayan won by resignation"]

1. e4 {[%clk 0:03:00.9]} 1... c5 {[%clk 0:02:59.4]} 2. Nf3 {[%clk 0:03:00.8]}
2... e6 {[%clk 0:02:58.9]} 3. d4 {[%clk 0:03:01]} 3... cxd4 {[%clk 0:02:59.1]}
4. Nxd4 {[%clk 0:03:01.8]} 4... Bc5 {[%clk 0:02:59.1]} 5. Nb3 {[%clk 0:02:58.9]}
5... Bb6 {[%clk 0:02:59.2]} 6. Nc3 {[%clk 0:02:55.9]} 6... Ne7 {[%clk
0:02:59.6]} 7. Bd3 {[%clk 0:02:46.5]} 7... O-O {[%clk 0:02:59.1]} 8. Qe2 {[%clk
0:02:45.9]} 8... f5 {[%clk 0:02:58.3]} 9. exf5 {[%clk 0:02:40.1]} 9... Nxf5
{[%clk 0:02:56.7]} 10. Bd2 {[%clk 0:02:34.9]} 10... Nc6 {[%clk 0:02:54]} 11.
Bxf5 {[%clk 0:02:20.8]} 11... Rxf5 {[%clk 0:02:51.8]} 12. f3 {[%clk 0:02:21.1]}
12... d5 {[%clk 0:02:48.8]} 13. O-O-O {[%clk 0:02:19.9]} 13... e5 {[%clk
0:02:48.5]} 14. Rhe1 {[%clk 0:02:09.8]} 14... d4 {[%clk 0:02:39.1]} 15. Ne4
{[%clk 0:02:04.3]} 15... a5 {[%clk 0:02:38.5]} 16. a4 {[%clk 0:01:59.8]} 16...
Be6 {[%clk 0:02:38]} 17. Nbc5 {[%clk 0:01:56.5]} 17... Bd5 {[%clk 0:02:35.1]}
18. Nxb7 {[%clk 0:01:52]} 18... Qd7 {[%clk 0:02:32.6]} 19. Nbc5 {[%clk
0:01:47.5]} 19... Qc7 {[%clk 0:02:18.7]} 20. g4 {[%clk 0:01:34]} 20... Rff8
{[%clk 0:02:15.7]} 21. b3 {[%clk 0:01:26.1]} 21... Nb4 {[%clk 0:02:02.4]} 22.
Bxb4 {[%clk 0:01:22.2]} 22... axb4 {[%clk 0:02:02.1]} 23. Qb5 {[%clk 0:01:07.6]}
23... Ra5 {[%clk 0:01:58.4]} 24. Qd7 {[%clk 0:01:01]} 24... Rxc5 {[%clk
0:01:57.5]} 25. Nxc5 {[%clk 0:00:57.8]} 25... Qxc5 {[%clk 0:01:53.9]} 26. Rxe5
{[%clk 0:00:54.8]} 26... Qc3 {[%clk 0:01:39.3]} 27. Qxd5+ {[%clk 0:00:52.6]}
27... Kh8 {[%clk 0:01:39.1]} 28. Kb1 {[%clk 0:00:45.2]} 28... d3 {[%clk
0:01:25.4]} 29. Rxd3 {[%clk 0:00:38.5]} 29... Qc8 {[%clk 0:01:23.2]} 30. Qc4
{[%clk 0:00:28.4]} 30... Qb8 {[%clk 0:01:20.5]} 31. Qxb4 {[%clk 0:00:26.5]} 1-0

[Event "Late-Titled-Tuesday-Blitz-June-04-2024"]
[Site "Chess.com"]
[Date "2024.06.04"]
[Round "3"]
[White "wonderfultime"]
[Black "HeinichessPY"]
[Result "1-0"]
[WhiteElo "3049"]
[BlackElo "2280"]
[TimeControl "180+1"]
[EndTime "14:26:17 PDT"]
[Termination "wonderfultime won by resignation"]

1. d4 {[%clk 0:02:57.4]} 1... Nf6 {[%clk 0:02:58.9]} 2. Nf3 {[%clk 0:02:56.7]}
2... g6 {[%clk 0:02:55.6]} 3. Bg5 {[%clk 0:02:54.2]} 3... Bg7 {[%clk 0:02:55.1]}
4. Nbd2 {[%clk 0:02:50.8]} 4... d5 {[%clk 0:02:53.1]} 5. c3 {[%clk 0:02:50.4]}
5... O-O {[%clk 0:02:52.4]} 6. e3 {[%clk 0:02:49.1]} 6... b6 {[%clk 0:02:51.5]}
7. Bd3 {[%clk 0:02:49.6]} 7... Ba6 {[%clk 0:02:49.5]} 8. Bxa6 {[%clk 0:02:49.3]}
8... Nxa6 {[%clk 0:02:50.1]} 9. Qe2 {[%clk 0:02:50]} 9... Nb8 {[%clk 0:02:45.7]}
10. e4 {[%clk 0:02:50.6]} 10... dxe4 {[%clk 0:02:44.1]} 11. Nxe4 {[%clk
0:02:51.5]} 11... Nbd7 {[%clk 0:02:41.4]} 12. O-O {[%clk 0:02:51.8]} 12... c5
{[%clk 0:02:35]} 13. Rad1 {[%clk 0:02:49.5]} 13... Qc7 {[%clk 0:02:25.1]} 14.
Rfe1 {[%clk 0:02:48.1]} 14... Nxe4 {[%clk 0:02:19]} 15. Qxe4 {[%clk 0:02:46.6]}
15... Nf6 {[%clk 0:02:18.2]} 16. Qxe7 {[%clk 0:02:45.9]} 16... Qxe7 {[%clk
0:01:56.9]} 17. Rxe7 {[%clk 0:02:46.8]} 17... Nd5 {[%clk 0:01:55.6]} 18. Rd7
{[%clk 0:02:44.6]} 18... Nf6 {[%clk 0:01:53.1]} 19. Rb7 {[%clk 0:02:38.1]} 19...
cxd4 {[%clk 0:01:53.1]} 20. Nxd4 {[%clk 0:02:36.6]} 20... Ne4 {[%clk 0:01:52]}
21. Be7 {[%clk 0:02:11.9]} 21... Rfe8 {[%clk 0:01:52.3]} 22. Nc6 {[%clk
0:02:08.4]} 22... Nc5 {[%clk 0:01:48.9]} 23. Bxc5 {[%clk 0:02:05.7]} 23... bxc5
{[%clk 0:01:46.2]} 24. Kf1 {[%clk 0:02:05.8]} 24... Bf6 {[%clk 0:01:38.5]} 25.
Rd6 {[%clk 0:02:01]} 25... Kg7 {[%clk 0:01:36.2]} 26. Rdd7 {[%clk 0:02:01.6]}
26... Rf8 {[%clk 0:01:22.3]} 27. Rxa7 {[%clk 0:02:01]} 27... Rac8 {[%clk
0:01:22.4]} 28. Rac7 {[%clk 0:01:56.3]} 28... Ra8 {[%clk 0:01:21.4]} 29. a3
{[%clk 0:01:56.7]} 29... Ra4 {[%clk 0:01:21.4]} 30. g3 {[%clk 0:01:54.8]} 30...
h5 {[%clk 0:01:20.8]} 31. h4 {[%clk 0:01:46.8]} 31... Ra6 {[%clk 0:01:13.4]} 32.
Kg2 {[%clk 0:01:21.7]} 32... Rb6 {[%clk 0:01:13.2]} 33. b4 {[%clk 0:01:22.1]}
33... Bxc3 {[%clk 0:01:04.6]} 34. bxc5 {[%clk 0:01:21.2]} 34... Ra6 {[%clk
0:01:04.5]} 35. Nd8 {[%clk 0:01:19.1]} 35... Rxd8 {[%clk 0:00:51.9]} 36. Rxd8
{[%clk 0:01:20]} 36... Ba5 {[%clk 0:00:51.9]} 37. Rd6 {[%clk 0:01:20.3]} 37...
Ra8 {[%clk 0:00:41.9]} 38. Rb7 {[%clk 0:01:18.9]} 38... Bd8 {[%clk 0:00:35]} 39.
Rdd7 {[%clk 0:01:17.9]} 1-0

[Event "Late-Titled-Tuesday-Blitz-June-04-2024"]
[Site "Chess.com"]
[Date "2024.06.04"]
[Round "3"]
[White "Arimin1329"]
[Black "IMJonathanCarlstedt"]
[Result "0-1"]
[WhiteElo "2355"]
[BlackElo "2567"]
[TimeControl "180+1"]
[EndTime "14:26:20 PDT"]
[Termination "IMJonathanCarlstedt won by resignation"]

1. Nf3 {[%clk 0:03:00.9]} 1... c5 {[%clk 0:02:58.7]} 2. c4 {[%clk 0:02:55.1]}
2... g6 {[%clk 0:02:57.9]} 3. Nc3 {[%clk 0:02:53.9]} 3... Bg7 {[%clk 0:02:57.3]}
4. Qc2 {[%clk 0:02:51.9]} 4... Nc6 {[%clk 0:02:56.5]} 5. a3 {[%clk 0:02:51.6]}
5... Nf6 {[%clk 0:02:54.9]} 6. g3 {[%clk 0:02:51.4]} 6... O-O {[%clk 0:02:53.6]}
7. Bg2 {[%clk 0:02:50.6]} 7... b6 {[%clk 0:02:49.6]} 8. Ne5 {[%clk 0:02:46.4]}
8... Bb7 {[%clk 0:02:49.6]} 9. Nxc6 {[%clk 0:02:46]} 9... Bxc6 {[%clk
0:02:49.8]} 10. Bxc6 {[%clk 0:02:45.4]} 10... dxc6 {[%clk 0:02:49.9]} 11. O-O
{[%clk 0:02:45]} 11... h5 {[%clk 0:02:48.9]} 12. d3 {[%clk 0:02:44.3]} 12... h4
{[%clk 0:02:48.9]} 13. Bg5 {[%clk 0:02:44]} 13... h3 {[%clk 0:02:48.5]} 14. Qd2
{[%clk 0:02:39.6]} 14... Qd7 {[%clk 0:02:42.9]} 15. Bh6 {[%clk 0:02:32.5]} 15...
Ng4 {[%clk 0:02:39.1]} 16. Bxg7 {[%clk 0:02:30.2]} 16... Kxg7 {[%clk 0:02:40]}
17. Qf4 {[%clk 0:02:28.9]} 17... e5 {[%clk 0:02:36.4]} 18. Qf3 {[%clk
0:02:22.8]} 18... f5 {[%clk 0:02:34.3]} 19. Rad1 {[%clk 0:02:18.9]} 19... Qe6
{[%clk 0:02:29]} 20. b4 {[%clk 0:02:14.1]} 20... cxb4 {[%clk 0:02:21.7]} 21.
axb4 {[%clk 0:02:13.7]} 21... a5 {[%clk 0:02:21.5]} 22. b5 {[%clk 0:02:12.1]}
22... c5 {[%clk 0:02:20]} 23. Nd5 {[%clk 0:02:09.6]} 23... Ra7 {[%clk 0:02:19]}
24. e3 {[%clk 0:02:03.6]} 24... a4 {[%clk 0:02:18.3]} 25. Ra1 {[%clk 0:02:01.3]}
25... a3 {[%clk 0:02:16.9]} 26. Ra2 {[%clk 0:02:01]} 26... e4 {[%clk 0:02:14]}
27. Qe2 {[%clk 0:01:55.3]} 27... Ne5 {[%clk 0:02:12]} 28. dxe4 {[%clk
0:01:50.5]} 28... fxe4 {[%clk 0:02:11.3]} 29. Nf4 {[%clk 0:01:49.1]} 29... Qf6
{[%clk 0:02:06.3]} 30. Rfa1 {[%clk 0:01:46.1]} 30... Nf3+ {[%clk 0:02:05.6]} 31.
Kh1 {[%clk 0:01:45.7]} 31... g5 {[%clk 0:01:57.3]} 32. Nd5 {[%clk 0:01:37.1]}
32... Qe5 {[%clk 0:01:41.6]} 33. Nxb6 {[%clk 0:01:31.4]} 33... Qc3 {[%clk
0:01:32.3]} 34. Nd5 {[%clk 0:01:24.9]} 34... Qd3 {[%clk 0:01:32.1]} 35. Qxd3
{[%clk 0:01:15.4]} 35... exd3 {[%clk 0:01:32]} 36. Rxa3 {[%clk 0:01:15.4]} 36...
Rxa3 {[%clk 0:01:28.8]} 37. Rxa3 {[%clk 0:01:15.8]} 37... d2 {[%clk 0:01:29.3]}
38. Nc3 {[%clk 0:01:10.4]} 38... Nd4 {[%clk 0:01:20.2]} 39. exd4 {[%clk
0:01:01.6]} 39... Re8 {[%clk 0:01:20.2]} 0-1

[Event "Late-Titled-Tuesday-Blitz-June-04-2024"]
[Site "Chess.com"]
[Date "2024.06.04"]
[Round "3"]
[White "JosephRyan"]
[Black "destroyer305"]
[Result "0-1"]
[WhiteElo "2213"]
[BlackElo "2442"]
[TimeControl "180+1"]
[EndTime "14:26:24 PDT"]
[Termination "destroyer305 won by resignation"]

1. e4 {[%clk 0:03:00.9]} 1... c5 {[%clk 0:02:52.9]} 2. Nf3 {[%clk 0:02:59.4]}
2... d6 {[%clk 0:02:51]} 3. Bb5+ {[%clk 0:02:57.7]} 3... Nd7 {[%clk 0:02:43.5]}
4. d4 {[%clk 0:02:56.6]} 4... a6 {[%clk 0:02:39.3]} 5. Bxd7+ {[%clk 0:02:53.4]}
5... Bxd7 {[%clk 0:02:40.2]} 6. Nc3 {[%clk 0:02:52]} 6... cxd4 {[%clk
0:02:33.6]} 7. Qxd4 {[%clk 0:02:51.6]} 7... e6 {[%clk 0:02:25.4]} 8. Bg5 {[%clk
0:02:49.5]} 8... Nf6 {[%clk 0:02:25.1]} 9. O-O-O {[%clk 0:02:48.5]} 9... Be7
{[%clk 0:02:22.4]} 10. Rhe1 {[%clk 0:02:48.3]} 10... O-O {[%clk 0:02:18.5]} 11.
e5 {[%clk 0:02:48.1]} 11... dxe5 {[%clk 0:02:14.7]} 12. Nxe5 {[%clk 0:02:48.2]}
12... Bb5 {[%clk 0:01:10]} 13. Qxd8 {[%clk 0:02:30.3]} 13... Rfxd8 {[%clk
0:01:09]} 14. a4 {[%clk 0:02:22.6]} 14... Be8 {[%clk 0:01:06.4]} 15. Rxd8 {[%clk
0:02:18.5]} 15... Rxd8 {[%clk 0:01:07.3]} 16. Rd1 {[%clk 0:02:18.4]} 16... h6
{[%clk 0:00:52.9]} 17. Rxd8 {[%clk 0:02:15.6]} 17... Bxd8 {[%clk 0:00:53.8]} 18.
Be3 {[%clk 0:02:11.7]} 18... Ba5 {[%clk 0:00:53.3]} 19. Bd4 {[%clk 0:02:07.7]}
19... Bxc3 {[%clk 0:00:53.2]} 20. Bxc3 {[%clk 0:02:07.3]} 20... Bxa4 {[%clk
0:00:54]} 21. Nc4 {[%clk 0:02:03.9]} 21... Bc6 {[%clk 0:00:52.3]} 22. f3 {[%clk
0:02:03.1]} 22... Nd5 {[%clk 0:00:52.2]} 23. Bd4 {[%clk 0:02:02.2]} 23... Nf4
{[%clk 0:00:52]} 24. Kd2 {[%clk 0:01:52.6]} 24... Nxg2 {[%clk 0:00:50.9]} 25.
Ke2 {[%clk 0:01:52.2]} 25... Nf4+ {[%clk 0:00:41.7]} 26. Ke3 {[%clk 0:01:51.5]}
26... Nd5+ {[%clk 0:00:41.8]} 27. Kf2 {[%clk 0:01:51]} 27... f6 {[%clk
0:00:42.5]} 28. c3 {[%clk 0:01:48.9]} 28... e5 {[%clk 0:00:42.8]} 29. Bc5 {[%clk
0:01:48.3]} 29... Kf7 {[%clk 0:00:42.6]} 30. Ne3 {[%clk 0:01:46.9]} 30... Nf4
{[%clk 0:00:41]} 31. b4 {[%clk 0:01:41.6]} 31... Nd3+ {[%clk 0:00:40.7]} 32. Ke2
{[%clk 0:01:40.6]} 32... Nxc5 {[%clk 0:00:40.4]} 33. bxc5 {[%clk 0:01:41.5]}
33... Ke6 {[%clk 0:00:40.6]} 34. Nc4 {[%clk 0:01:39.2]} 34... Kd5 {[%clk
0:00:39.6]} 35. Nd6 {[%clk 0:01:39.4]} 35... Kxc5 {[%clk 0:00:39.6]} 36. Nf5
{[%clk 0:01:39.9]} 36... a5 {[%clk 0:00:34.6]} 37. Nxg7 {[%clk 0:01:39.8]} 37...
a4 {[%clk 0:00:35.3]} 38. Kd2 {[%clk 0:01:38.7]} 38... a3 {[%clk 0:00:34.2]} 39.
Kc2 {[%clk 0:01:38]} 39... Bxf3 {[%clk 0:00:34.5]} 40. Kb3 {[%clk 0:01:36.3]}
40... e4 {[%clk 0:00:34.3]} 41. Nf5 {[%clk 0:01:33.7]} 41... Kd5 {[%clk
0:00:33.8]} 42. Kxa3 {[%clk 0:01:31.8]} 42... Ke5 {[%clk 0:00:34.5]} 43. Ne3
{[%clk 0:01:31.2]} 43... f5 {[%clk 0:00:35.2]} 44. Kb4 {[%clk 0:01:24.3]} 44...
f4 {[%clk 0:00:35.7]} 45. Nf1 {[%clk 0:01:22.1]} 45... e3 {[%clk 0:00:35.3]} 0-1

[Event "Late-Titled-Tuesday-Blitz-June-04-2024"]
[Site "Chess.com"]
[Date "2024.06.04"]
[Round "3"]
[White "KIEV-1"]
[Black "Smoking_Crow"]
[Result "1-0"]
[WhiteElo "2365"]
[BlackElo "2548"]
[TimeControl "180+1"]
[EndTime "14:26:33 PDT"]
[Termination "KIEV-1 won by resignation"]

1. e4 {[%clk 0:03:00.9]} 1... e5 {[%clk 0:02:59.4]} 2. Nf3 {[%clk 0:03:00.7]}
2... Nc6 {[%clk 0:02:59.8]} 3. Bc4 {[%clk 0:03:00.9]} 3... Nf6 {[%clk
0:03:00.1]} 4. d3 {[%clk 0:02:59.7]} 4... Bc5 {[%clk 0:03:00.1]} 5. O-O {[%clk
0:02:58.9]} 5... d6 {[%clk 0:03:00.7]} 6. h3 {[%clk 0:02:58.9]} 6... Bb6 {[%clk
0:03:01.4]} 7. Nc3 {[%clk 0:02:58.9]} 7... O-O {[%clk 0:03:02]} 8. Bg5 {[%clk
0:02:58.9]} 8... h6 {[%clk 0:03:02.6]} 9. Be3 {[%clk 0:02:59.2]} 9... Ne7 {[%clk
0:03:02.5]} 10. d4 {[%clk 0:02:55.8]} 10... Ng6 {[%clk 0:03:01.8]} 11. Qd2
{[%clk 0:02:54.7]} 11... Ba5 {[%clk 0:03:00.2]} 12. Qd3 {[%clk 0:02:44.2]} 12...
Qe7 {[%clk 0:02:55.4]} 13. dxe5 {[%clk 0:02:34.6]} 13... dxe5 {[%clk 0:02:56.3]}
14. Nd5 {[%clk 0:02:25.7]} 14... Nxd5 {[%clk 0:02:56]} 15. Bxd5 {[%clk
0:02:26.6]} 15... c6 {[%clk 0:02:55.7]} 16. Bb3 {[%clk 0:02:22.4]} 16... Bb6
{[%clk 0:02:55.7]} 17. Bxb6 {[%clk 0:02:18]} 17... axb6 {[%clk 0:02:56.6]} 18.
Rad1 {[%clk 0:02:15.4]} 18... Be6 {[%clk 0:02:49.6]} 19. Qc3 {[%clk 0:02:02.6]}
19... Qf6 {[%clk 0:02:45.4]} 20. Rd6 {[%clk 0:01:56.8]} 20... Rfd8 {[%clk
0:02:40.3]} 21. Rfd1 {[%clk 0:01:56.1]} 21... Rxd6 {[%clk 0:02:36.1]} 22. Rxd6
{[%clk 0:01:57]} 22... Qf4 {[%clk 0:02:32.6]} 23. Bxe6 {[%clk 0:01:47.3]} 23...
fxe6 {[%clk 0:02:31.8]} 24. Rxe6 {[%clk 0:01:45]} 24... Qf7 {[%clk 0:02:26.1]}
25. Qb3 {[%clk 0:01:38.1]} 25... Rd8 {[%clk 0:02:10.5]} 26. Rxg6 {[%clk
0:01:36.6]} 26... Rd1+ {[%clk 0:02:05.4]} 27. Kh2 {[%clk 0:01:34.6]} 27... Qxb3
{[%clk 0:02:04.5]} 28. axb3 {[%clk 0:01:34.1]} 28... Rb1 {[%clk 0:02:05]} 29.
Nxe5 {[%clk 0:01:25.8]} 29... Rxb2 {[%clk 0:02:04.2]} 30. Rd6 {[%clk 0:01:18.6]}
30... Rxc2 {[%clk 0:02:04]} 31. f4 {[%clk 0:01:19.2]} 31... b5 {[%clk
0:02:01.4]} 32. f5 {[%clk 0:01:17.3]} 32... Kf8 {[%clk 0:02:00.9]} 33. Rd7
{[%clk 0:01:17.1]} 33... Re2 {[%clk 0:01:57]} 34. Ng6+ {[%clk 0:01:14.1]} 34...
Ke8 {[%clk 0:01:54.7]} 35. Re7+ {[%clk 0:01:13]} 35... Kd8 {[%clk 0:01:53.6]}
36. Kg3 {[%clk 0:01:10.9]} 36... c5 {[%clk 0:01:52.8]} 37. e5 {[%clk 0:01:06.2]}
37... c4 {[%clk 0:01:53.1]} 38. bxc4 {[%clk 0:01:05.5]} 38... bxc4 {[%clk
0:01:54]} 39. Rxb7 {[%clk 0:01:04.3]} 39... c3 {[%clk 0:01:53.5]} 40. Rb1 {[%clk
0:01:03.3]} 40... c2 {[%clk 0:01:53.9]} 41. Rc1 {[%clk 0:01:03.5]} 41... Ke8
{[%clk 0:01:53.6]} 42. Kf3 {[%clk 0:00:58.5]} 42... Rd2 {[%clk 0:01:53.5]} 43.
Nf4 {[%clk 0:00:58.5]} 43... Kf7 {[%clk 0:01:43.2]} 44. Ke3 {[%clk 0:00:58.5]}
44... Rd8 {[%clk 0:01:41.9]} 45. Rxc2 {[%clk 0:00:58.3]} 45... h5 {[%clk
0:01:41.8]} 46. Rc7+ {[%clk 0:00:57.4]} 46... Kg8 {[%clk 0:01:42.1]} 47. Nxh5
{[%clk 0:00:57.1]} 47... Rd1 {[%clk 0:01:41.3]} 48. Rxg7+ {[%clk 0:00:56]} 48...
Kh8 {[%clk 0:01:41.7]} 49. Rc7 {[%clk 0:00:51.3]} 49... Re1+ {[%clk 0:01:40.7]}
50. Kf2 {[%clk 0:00:50.8]} 50... Rxe5 {[%clk 0:01:40]} 51. g4 {[%clk 0:00:50.4]}
51... Ra5 {[%clk 0:01:38.6]} 52. Kg3 {[%clk 0:00:49.8]} 52... Ra3+ {[%clk
0:01:37.7]} 53. Kh4 {[%clk 0:00:49.8]} 53... Rb3 {[%clk 0:01:38.1]} 54. Kg5
{[%clk 0:00:49.1]} 54... Rb8 {[%clk 0:01:36.9]} 55. Nf6 {[%clk 0:00:42.4]} 1-0

[Event "Late-Titled-Tuesday-Blitz-June-04-2024"]
[Site "Chess.com"]
[Date "2024.06.04"]
[Round "3"]
[White "rezamahdavi2008"]
[Black "ReadySkate"]
[Result "1-0"]
[WhiteElo "2935"]
[BlackElo "2709"]
[TimeControl "180+1"]
[EndTime "14:26:37 PDT"]
[Termination "rezamahdavi2008 won by resignation"]

1. e4 {[%clk 0:02:54]} 1... c5 {[%clk 0:03:00.1]} 2. Nf3 {[%clk 0:02:53]} 2...
d6 {[%clk 0:03:00.6]} 3. d4 {[%clk 0:02:50.4]} 3... cxd4 {[%clk 0:03:01.5]} 4.
Nxd4 {[%clk 0:02:51.3]} 4... Nf6 {[%clk 0:03:01.9]} 5. Nc3 {[%clk 0:02:51.2]}
5... a6 {[%clk 0:03:02.4]} 6. h3 {[%clk 0:02:51.5]} 6... e5 {[%clk 0:03:02.1]}
7. Nb3 {[%clk 0:02:49.4]} 7... h5 {[%clk 0:03:01.2]} 8. Bg5 {[%clk 0:02:36.6]}
8... Be6 {[%clk 0:03:00.7]} 9. f4 {[%clk 0:02:37]} 9... exf4 {[%clk 0:02:59.4]}
10. Bxf4 {[%clk 0:02:37.9]} 10... Nc6 {[%clk 0:02:59.1]} 11. Qd2 {[%clk
0:02:35.7]} 11... d5 {[%clk 0:02:58.3]} 12. O-O-O {[%clk 0:02:28.6]} 12... dxe4
{[%clk 0:02:54.4]} 13. Qe3 {[%clk 0:02:27.1]} 13... Qc8 {[%clk 0:02:50.6]} 14.
Bg5 {[%clk 0:02:22.8]} 14... Be7 {[%clk 0:02:46.6]} 15. Nc5 {[%clk 0:02:12.3]}
15... O-O {[%clk 0:02:38.5]} 16. N5xe4 {[%clk 0:02:05.2]} 16... Nxe4 {[%clk
0:02:36.4]} 17. Nxe4 {[%clk 0:02:04.4]} 17... Nb4 {[%clk 0:02:16.1]} 18. c3
{[%clk 0:02:02.7]} 18... Bxg5 {[%clk 0:02:15.5]} 19. Qxg5 {[%clk 0:02:00.7]}
19... f6 {[%clk 0:01:57.8]} 20. Qc5 {[%clk 0:01:55.9]} 20... Nxa2+ {[%clk
0:01:25.2]} 21. Kb1 {[%clk 0:01:54.9]} 21... Bf5 {[%clk 0:01:25.3]} 22. Qd5+
{[%clk 0:01:09.7]} 22... Kh8 {[%clk 0:01:16]} 23. Bd3 {[%clk 0:01:08.8]} 23...
Rd8 {[%clk 0:01:11.7]} 24. Nd6 {[%clk 0:01:07.9]} 24... Rxd6 {[%clk 0:00:18.2]}
25. Qxd6 {[%clk 0:01:08.8]} 25... Bxd3+ {[%clk 0:00:06.3]} 26. Rxd3 {[%clk
0:01:09.7]} 26... Qc4 {[%clk 0:00:05.9]} 27. Qd5 {[%clk 0:01:06.7]} 1-0

[Event "Late-Titled-Tuesday-Blitz-June-04-2024"]
[Site "Chess.com"]
[Date "2024.06.04"]
[Round "3"]
[White "stolencandy13"]
[Black "Road2GM3000"]
[Result "1-0"]
[WhiteElo "2633"]
[BlackElo "2442"]
[TimeControl "180+1"]
[EndTime "14:26:39 PDT"]
[Termination "stolencandy13 won on time"]

1. d4 {[%clk 0:03:00.9]} 1... d5 {[%clk 0:02:59.9]} 2. Bf4 {[%clk 0:02:57.8]}
2... c6 {[%clk 0:02:59.7]} 3. e3 {[%clk 0:02:56.3]} 3... Nf6 {[%clk 0:02:59.9]}
4. Bd3 {[%clk 0:02:53.8]} 4... Bg4 {[%clk 0:02:57]} 5. Nf3 {[%clk 0:02:52.9]}
5... e6 {[%clk 0:02:57.1]} 6. c4 {[%clk 0:02:50.3]} 6... Bd6 {[%clk 0:02:56.9]}
7. Bg3 {[%clk 0:02:45.4]} 7... O-O {[%clk 0:02:56.1]} 8. Qb3 {[%clk 0:02:45.3]}
8... Bxg3 {[%clk 0:02:54]} 9. hxg3 {[%clk 0:02:45]} 9... Qb6 {[%clk 0:02:47.2]}
10. Ne5 {[%clk 0:02:41]} 10... Qxb3 {[%clk 0:02:46.4]} 11. axb3 {[%clk
0:02:38.9]} 11... Bf5 {[%clk 0:02:44.5]} 12. Bxf5 {[%clk 0:02:36.6]} 12... exf5
{[%clk 0:02:45.4]} 13. Nc3 {[%clk 0:02:35.4]} 13... Rd8 {[%clk 0:02:29.9]} 14.
Ke2 {[%clk 0:02:27.1]} 14... Nbd7 {[%clk 0:02:24.9]} 15. Nxd7 {[%clk 0:02:14.2]}
15... Rxd7 {[%clk 0:02:25.1]} 16. Ra5 {[%clk 0:02:12.8]} 16... a6 {[%clk
0:02:11.1]} 17. cxd5 {[%clk 0:02:10.8]} 17... Nxd5 {[%clk 0:02:10.8]} 18. Nxd5
{[%clk 0:02:10.6]} 18... cxd5 {[%clk 0:02:11.4]} 19. Rc1 {[%clk 0:02:08.9]}
19... Kf8 {[%clk 0:02:04.7]} 20. b4 {[%clk 0:02:01.4]} 20... Ke7 {[%clk
0:01:01.8]} 21. b5 {[%clk 0:02:00.9]} 21... Ke6 {[%clk 0:00:50.6]} 22. bxa6
{[%clk 0:02:00.1]} 22... bxa6 {[%clk 0:00:48.3]} 23. Rca1 {[%clk 0:01:52.1]}
23... Rd6 {[%clk 0:00:47.2]} 24. b4 {[%clk 0:01:52.3]} 24... Rb8 {[%clk
0:00:44.1]} 25. R1a4 {[%clk 0:01:51.9]} 25... Ke7 {[%clk 0:00:40.1]} 26. Kd3
{[%clk 0:01:51.5]} 26... Rbb6 {[%clk 0:00:33]} 27. Kc3 {[%clk 0:01:50.3]} 27...
Re6 {[%clk 0:00:29.4]} 28. Rxd5 {[%clk 0:01:47.4]} 28... g6 {[%clk 0:00:25.1]}
29. Re5 {[%clk 0:01:34.8]} 29... Rxe5 {[%clk 0:00:22.2]} 30. dxe5 {[%clk
0:01:35.7]} 30... Ke6 {[%clk 0:00:18.8]} 31. Kd4 {[%clk 0:01:32.5]} 31... h5
{[%clk 0:00:12.5]} 32. f4 {[%clk 0:01:32.6]} 32... Kd7 {[%clk 0:00:05.4]} 33.
Kc5 {[%clk 0:01:29.4]} 33... Rc6+ {[%clk 0:00:05.6]} 34. Kd5 {[%clk 0:01:27.5]}
34... Rb6 {[%clk 0:00:06.3]} 35. e4 {[%clk 0:01:17.1]} 35... fxe4 {[%clk
0:00:03.3]} 36. Kxe4 {[%clk 0:01:17.1]} 1-0